fUST/lending_fUST_20250701
["ID","MTS","AMOUNT","RATE_DAILY","PERIOD"]
[368695832,1751303440577,-366.3004382,0.00023332,2]
[368695834,1751303440587,-1618.89,0.00023335,4]
[368695836,1751303440596,-151.0,0.00023343,2]
[368695837,1751303440605,-8569.75171391,0.00023369,5]
[368695839,1751303440615,-218.31066978,0.0002337,2]
[368695842,1751303440625,-151.0,0.000234,8]
[368695844,1751303440634,-1618.89,0.00023435,4]
[368695846,1751303440644,-460.0,0.0002345,2]
[368695848,1751303440653,-500.0,0.00023473,2]
[368695850,1751303440663,-160.0494529,0.00023473,2]
[368695852,1751303440672,-500.0,0.00023473,2]
[368695854,1751303440681,-500.0,0.00023473,2]
[368695856,1751303440690,-500.0,0.00023473,2]
[368695858,1751303440701,-500.0,0.00023473,2]
[368695860,1751303440710,-500.0,0.00023473,2]
[368695862,1751303440719,-500.0,0.00023473,2]
[368695864,1751303440730,-500.0,0.00023473,2]
[368695865,1751303440740,-500.0,0.00023473,2]
[368695866,1751303440750,-500.0,0.00023473,2]
[368695867,1751303440760,-600.0,0.00023473,2]
[368695869,1751303440769,-500.0,0.00023473,2]
[368695871,1751303440778,-500.0,0.00023473,2]
[368695873,1751303440788,-564.16242984,0.00023473,2]
[368695875,1751303440798,-500.0,0.00023473,2]
[368695877,1751303440807,-521.29076982,0.00023473,2]
[368695879,1751303440816,-500.0,0.00023473,2]
[368695881,1751303440826,-500.0,0.00023473,2]
[368695882,1751303440835,-500.0,0.00023473,2]
[368695884,1751303440846,-500.0,0.00023473,2]
[368695886,1751303440855,-500.0,0.00023473,2]
[368695888,1751303440865,-500.0,0.00023473,2]
[368695890,1751303440874,-500.0,0.00023473,2]
[368695893,1751303440884,-500.0,0.00023473,2]
[368695895,1751303440898,-500.0,0.00023473,2]
[368695897,1751303440908,-500.0,0.00023473,2]
[368695899,1751303440918,-500.73388162,0.00023473,2]
[368695914,1751303440928,-500.0,0.00023473,2]
[368695917,1751303441064,-500.0,0.00023473,2]
[368695919,1751303441074,-500.0,0.00023473,2]
[368695921,1751303441085,-500.0,0.00023473,2]
[368695923,1751303441095,-500.0,0.00023473,2]
[368695925,1751303441105,-500.0,0.00023473,2]
[368695927,1751303441114,-500.0,0.00023473,2]
[368695929,1751303441124,-124888.45597041,0.000235,2]
[368695931,1751303441135,-171.0,0.000235,3]
[368695933,1751303441146,-171.0,0.000235,3]
[368695935,1751303441155,-171.0,0.000235,3]
[368695937,1751303441165,-272.83701376,0.000235,3]
[368695939,1751303441174,-302.0,0.000235,3]
[368695941,1751303441184,-160.0,0.000235,5]
[368695943,1751303441193,-151.0,0.000235,3]
[368695945,1751303441204,-151.0,0.000235,3]
[368695947,1751303441214,-151.0,0.000235,3]
[368695949,1751303441223,-151.0,0.000235,3]
[368695951,1751303441233,-171.48448865,0.000235,5]
[368695953,1751303441242,-151.0,0.000235,3]
[368695955,1751303441252,-151.0,0.000235,3]
[368695957,1751303441262,-151.0,0.000235,3]
[368695959,1751303441271,-151.0,0.000235,3]
[368695961,1751303441280,-151.0,0.000235,3]
[368695963,1751303441289,-151.0,0.000235,3]
[368695965,1751303441298,-151.0,0.000235,3]
[368695967,1751303441307,-151.0,0.000235,3]
[368695968,1751303441317,-151.0,0.000235,3]
[368695970,1751303441327,-151.0,0.000235,3]
[368695972,1751303441336,-151.0,0.000235,3]
[368695974,1751303441346,-151.0,0.000235,3]
[368695976,1751303441356,-151.0,0.000235,3]
[368695978,1751303441365,-151.0,0.000235,3]
[368695980,1751303441375,-151.0,0.000235,3]
[368695982,1751303441384,-156.21624187,0.000235,3]
[368695983,1751303441394,-151.0,0.000235,3]
[368695984,1751303441403,-151.0,0.000235,3]
[368695985,1751303441413,-151.0,0.000235,3]
[368695987,1751303441422,-151.0,0.000235,3]
[368695988,1751303441432,-151.0,0.000235,3]
[368695990,1751303441441,-151.0,0.000235,3]
[368695992,1751303441450,-151.0,0.000235,3]
[368695994,1751303441460,-151.0,0.000235,3]
[368695996,1751303441470,-151.0,0.000235,3]
[368695997,1751303441479,-151.0,0.000235,3]
[368695999,1751303441488,-151.0,0.000235,7]
[368696001,1751303441498,-151.0,0.000235,2]
[368696003,1751303441507,-151.0,0.000235,6]
[368696005,1751303441517,-151.0,0.000235,7]
[368696007,1751303441526,-151.0,0.000235,7]
[368696009,1751303441536,-151.0,0.000235,7]
[368696011,1751303441545,-151.0,0.000235,7]
[368696013,1751303441556,-151.0,0.000235,7]
[368696015,1751303441566,-1618.89,0.00023535,3]
[368696017,1751303441575,-330.1,0.00023561,2]
[368696019,1751303441585,-330.1,0.00023561,2]
[368696020,1751303441594,-330.1,0.00023561,2]
[368696021,1751303441604,-330.1,0.00023561,2]
[368696022,1751303441614,-330.1,0.00023561,2]
[368696023,1751303441623,-330.1,0.00023561,2]
[368696024,1751303441633,-330.1,0.00023561,2]
[368696025,1751303441643,-330.1,0.00023561,2]
[368696026,1751303441652,-330.1,0.00023561,2]
[368696027,1751303441662,-330.1,0.00023561,2]
[368696028,1751303441671,-330.1,0.00023561,2]
[368696029,1751303441681,-32150.01561871,0.00023562,2]
[368696030,1751303441691,-7007.49790895,0.00023562,2]
[368696031,1751303441701,-500.0,0.00023569,2]
[368696032,1751303441710,-322.39125931,0.00023569,2]
[368696033,1751303441720,-297.15493284,0.00023569,2]
[368696034,1751303441729,-500.0,0.00023569,2]
[368696035,1751303441740,-500.0,0.00023569,2]
[368696036,1751303441750,-500.0,0.00023569,2]
[368696037,1751303441759,-500.0,0.00023569,2]
[368696038,1751303441769,-500.0,0.00023569,2]
[368696039,1751303441779,-500.0,0.00023569,2]
[368696040,1751303441789,-500.0,0.00023569,2]
[368696041,1751303441799,-500.0,0.00023569,2]
[368696042,1751303441809,-500.0,0.00023569,2]
[368696043,1751303441819,-500.0,0.00023569,2]
[368696044,1751303441829,-500.0,0.00023569,2]
[368696045,1751303441839,-500.0,0.00023569,2]
[368696046,1751303441848,-500.0,0.00023569,2]
[368696047,1751303441858,-500.0,0.00023569,2]
[368696048,1751303441867,-500.0,0.00023569,2]
[368696049,1751303441877,-500.0,0.00023569,2]
[368696050,1751303441887,-837.16779106,0.000236,3]
[368696051,1751303441896,-160.0,0.000236,3]
[368696052,1751303441906,-160.0,0.000236,3]
[368696053,1751303441916,-847.41730813,0.000236,3]
[368696054,1751303441926,-160.0,0.000236,3]
[368696055,1751303441936,-214.99848635,0.000236,3]
[368696056,1751303441945,-1069.41134823,0.00023607,2]
[368696057,1751303441956,-474.71465514,0.00023607,4]
[368696058,1751303441966,-474.71465514,0.00023607,4]
[368696059,1751303441975,-474.71465514,0.00023607,4]
[368696060,1751303441985,-474.71465514,0.00023607,4]
[368696061,1751303441994,-474.71465514,0.00023607,4]
[368696062,1751303442005,-474.71465514,0.00023607,4]
[368696063,1751303442015,-474.71465514,0.00023607,4]
[368696064,1751303442024,-474.71465514,0.00023607,4]
[368696065,1751303442033,-474.71465514,0.00023607,4]
[368696066,1751303442042,-474.71465514,0.00023607,4]
[368696067,1751303442053,-474.71465514,0.00023607,4]
[368696068,1751303442064,-474.71465514,0.00023607,4]
[368696069,1751303442073,-474.71465514,0.00023607,4]
[368696070,1751303442083,-474.71465514,0.00023607,4]
[368696071,1751303442092,-474.71465514,0.00023607,4]
[368696072,1751303442103,-474.71465514,0.00023607,4]
[368696073,1751303442111,-474.71465514,0.00023607,4]
[368696074,1751303442121,-474.71465514,0.00023607,4]
[368696075,1751303442131,-474.71465514,0.00023607,4]
[368696076,1751303442140,-474.71,0.00023607,4]
[368696077,1751303442149,-1107.66752867,0.00023607,4]
[368696078,1751303442159,-1107.66752867,0.00023607,4]
[368696079,1751303442168,-1107.66752867,0.00023607,4]
[368696080,1751303442177,-1107.66752867,0.00023607,4]
[368696081,1751303442186,-1107.66752867,0.00023607,4]
[368696082,1751303442195,-1107.66752867,0.00023607,4]
[368696083,1751303442205,-1107.66752867,0.00023607,4]
[368696084,1751303442215,-1107.66752867,0.00023607,4]
[368696085,1751303442224,-1107.66752867,0.00023607,4]
[368696086,1751303442234,-1107.66752867,0.00023607,4]
[368696087,1751303442244,-1107.66752867,0.00023607,4]
[368696088,1751303442254,-1107.66752867,0.00023607,4]
[368696089,1751303442264,-1107.66752867,0.00023607,4]
[368696090,1751303442273,-1107.66752867,0.00023607,4]
[368696091,1751303442282,-1107.66752867,0.00023607,4]
[368696092,1751303442292,-1107.66752867,0.00023607,4]
[368696093,1751303442301,-1107.66752867,0.00023607,4]
[368696094,1751303442311,-2000.0,0.00023616,2]
[368696095,1751303442320,-183.0,0.00023624,2]
[368696096,1751303442329,-1618.89,0.00023635,2]
[368696097,1751303442338,-1107.66752867,0.00023661,4]
[368696098,1751303442348,-239.0,0.00023671,2]
[368696099,1751303442357,-261.0,0.00023676,2]
[368696100,1751303442367,-2873.35218421,0.000237,30]
[368696101,1751303442376,-286499.93892717,0.00023707,7]
[368696102,1751303442454,-34.28114679,0.0002199,10]
[368696109,1751303443604,-32.16118796,0.0002199,10]
[368696118,1751303446720,-460.0,0.00020017,2]
[368696119,1751303446730,-460.0,0.00020291,2]
[368696120,1751303446739,-460.0,0.00020565,2]
[368696121,1751303446750,-460.0,0.00020839,2]
[368696122,1751303446759,-296.53744723,0.00021113,2]
[368696127,1751303730026,164.765064,0.00013699,2]
[368696143,1751304330109,-319.04,0.00018827,2]
[368696144,1751304330133,-164.8153706,0.00019181,2]
[368696145,1751304330157,-2139.37162848,0.00019281,2]
[368696156,1751304426097,-511.14963582,0.00019237,2]
[368696157,1751304436407,-159.9373975,0.00019236,2]
[368696158,1751304439167,-140.0626025,0.00019236,2]
[368696159,1751304439190,-2388.32311332,0.00019237,2]
[368696160,1751304449110,-240.7148064,0.00019181,2]
[368696161,1751304449135,-1349.78634167,0.00019186,2]
[368696171,1751304523430,578.56297608,0.000149,2]
[368696172,1751304523762,1000.0,0.0001,2]
[368696173,1751304548116,-193.01079931,0.000189,2]
[368696174,1751304548140,-1484.73821113,0.00019186,2]
[368696175,1751304548161,-300.0,0.00019236,2]
[368696176,1751304548182,-17267.9254902,0.00019237,2]
[368696177,1751304549083,-580.5226,0.00019237,2]
[368696178,1751304553124,-4152.07916066,0.00019237,2]
[368696179,1751304553146,-1630.93614252,0.00019281,2]
[368696180,1751304553168,-180.94004,0.00019328,2]
[368696181,1751304553190,-807.78739591,0.00019337,2]
[368696182,1751304569114,-216.3381804,0.00019236,2]
[368696206,1751304632721,-261.7418196,0.00019236,2]
[368696207,1751304632732,-143.51876509,0.00019337,2]
[368696208,1751304632742,-182.81913841,0.00019416,2]
[368696209,1751304632752,-300.0,0.00020016,2]
[368696210,1751304632762,-300.0,0.00020016,2]
[368696211,1751304632772,-300.0,0.00020016,2]
[368696212,1751304632782,-300.0,0.00020016,2]
[368696213,1751304632792,-1200.0,0.00020016,2]
[368696214,1751304632802,-3878.93173806,0.00020017,2]
[368696215,1751304632812,-387.85280169,0.00020017,2]
[368696217,1751304632821,-460.0,0.00020017,2]
[368696219,1751304632831,-500.0,0.00020017,2]
[368696221,1751304632840,-460.0,0.00020017,2]
[368696223,1751304632851,-164.765064,0.00020187,2]
[368696224,1751304632860,-460.0,0.00020291,2]
[368696225,1751304632872,-164.8153706,0.000203,2]
[368696226,1751304632882,-160.0,0.00020325,2]
[368696227,1751304632891,-847.41730813,0.00020325,2]
[368696228,1751304632901,-160.0,0.00020325,2]
[368696229,1751304632911,-213.84631524,0.00020325,2]
[368696230,1751304632921,-214.99848635,0.00020325,2]
[368696231,1751304632930,-160.0,0.00020325,2]
[368696232,1751304632940,-837.16779106,0.00020325,2]
[368696233,1751304632949,-230.31346914,0.00020325,2]
[368696234,1751304632959,-748.14650133,0.00020364,2]
[368696235,1751304632971,-324.23,0.00020391,3]
[368696236,1751304632981,-162.11,0.00020391,3]
[368696237,1751304632990,-486.38,0.00020391,3]
[368696238,1751304633000,-164.26792311,0.00020399,2]
[368696239,1751304633010,-460.0,0.00020399,2]
[368696240,1751304633020,-460.0,0.00020399,2]
[368696241,1751304633030,-460.0,0.00020399,2]
[368696242,1751304633042,-460.0,0.00020399,2]
[368696243,1751304633052,-460.0,0.00020399,2]
[368696244,1751304633063,-460.0,0.00020399,2]
[368696245,1751304633074,-460.0,0.00020399,2]
[368696246,1751304633084,-460.0,0.00020399,2]
[368696247,1751304633095,-460.0,0.00020399,2]
[368696248,1751304633105,-460.0,0.00020399,2]
[368696249,1751304633116,-460.0,0.00020399,2]
[368696250,1751304633125,-460.0,0.00020399,2]
[368696251,1751304633135,-460.0,0.000204,2]
[368696252,1751304633145,-460.0,0.000204,2]
[368696253,1751304633156,-460.0,0.000204,2]
[368696254,1751304633167,-460.42123541,0.000204,2]
[368696255,1751304633177,-151.23459329,0.000204,2]
[368696256,1751304633187,-460.0,0.000204,2]
[368696257,1751304633197,-460.0,0.000204,2]
[368696258,1751304633207,-279.29554518,0.000204,2]
[368696259,1751304633216,-460.0,0.000204,2]
[368696260,1751304633227,-460.0,0.000204,2]
[368696261,1751304633237,-460.0,0.000204,2]
[368696262,1751304633248,-500.0,0.000204,2]
[368696263,1751304633258,-551.18632684,0.000204,2]
[368696264,1751304633268,-500.0,0.000204,2]
[368696265,1751304633279,-500.0,0.000204,2]
[368696266,1751304633289,-500.0,0.000204,2]
[368696267,1751304633299,-500.0,0.000204,2]
[368696268,1751304633308,-500.0,0.000204,2]
[368696269,1751304633318,-500.0,0.000204,2]
[368696270,1751304633328,-500.0,0.000204,2]
[368696271,1751304633338,-500.0,0.000204,2]
[368696272,1751304633348,-500.0,0.000204,2]
[368696273,1751304633358,-500.0,0.000204,2]
[368696274,1751304633368,-500.0,0.000204,2]
[368696275,1751304633377,-500.0,0.000204,2]
[368696276,1751304633387,-582.18174534,0.000204,2]
[368696277,1751304633398,-228.86974188,0.000204,2]
[368696278,1751304633412,-500.0,0.000204,2]
[368696279,1751304633422,-500.0,0.000204,2]
[368696280,1751304633432,-429.79450631,0.000204,2]
[368696281,1751304633443,-500.0,0.000204,2]
[368696282,1751304633453,-500.0,0.000204,2]
[368696283,1751304633463,-500.0,0.000204,2]
[368696284,1751304633475,-500.0,0.000204,2]
[368696285,1751304633485,-500.0,0.000204,2]
[368696286,1751304633494,-500.0,0.000204,2]
[368696287,1751304633504,-500.0,0.000204,2]
[368696288,1751304633514,-500.0,0.000204,2]
[368696289,1751304633524,-500.0,0.000204,2]
[368696290,1751304633535,-500.0,0.000204,2]
[368696291,1751304633544,-500.0,0.000204,2]
[368696292,1751304633554,-500.0,0.000204,2]
[368696293,1751304633565,-500.0,0.000204,2]
[368696294,1751304633575,-500.0,0.000204,2]
[368696295,1751304633584,-500.0,0.000204,2]
[368696296,1751304633594,-500.0,0.000204,2]
[368696297,1751304633604,-500.0,0.000204,2]
[368696298,1751304633616,-500.0,0.000204,2]
[368696299,1751304633626,-500.0,0.000204,2]
[368696300,1751304633637,-156.19301826,0.000204,2]
[368696301,1751304633646,-500.0,0.000204,2]
[368696302,1751304633656,-500.0,0.000204,2]
[368696303,1751304633666,-500.0,0.000204,2]
[368696304,1751304633676,-500.0,0.000204,2]
[368696305,1751304633686,-516.90436456,0.000204,2]
[368696306,1751304633696,-500.0,0.000204,2]
[368696307,1751304633706,-500.0,0.000204,2]
[368696308,1751304633716,-500.0,0.000204,2]
[368696309,1751304633725,-500.0,0.000204,2]
[368696310,1751304633735,-500.0,0.000204,2]
[368696311,1751304633744,-500.0,0.000204,2]
[368696312,1751304633754,-500.0,0.000204,2]
[368696313,1751304633765,-500.0,0.000204,2]
[368696314,1751304633776,-502.7314973,0.000204,2]
[368696315,1751304633786,-500.0,0.000204,2]
[368696316,1751304633796,-500.0,0.000204,2]
[368696317,1751304633806,-500.0,0.000204,2]
[368696318,1751304633815,-500.0,0.000204,2]
[368696319,1751304633826,-500.0,0.000204,2]
[368696320,1751304633835,-500.0,0.000204,2]
[368696321,1751304633844,-500.0,0.000204,2]
[368696322,1751304633854,-10530.70873183,0.00020401,2]
[368696331,1751304638642,-545.55,0.00019236,2]
[368696332,1751304638653,-189.3850334,0.000203,2]
[368696333,1751304638663,-561.54,0.00020399,2]
[368696334,1751304638672,-13969.08259623,0.00020401,2]
[368696335,1751304638749,-345500.20867194,0.00020401,2]
[368696336,1751304638759,-158.475,0.0002048,2]
[368696337,1751304638769,-460.0,0.00020509,2]
[368696338,1751304638779,-555.83,0.00020509,2]
[368696339,1751304638788,-460.0,0.00020509,2]
[368696340,1751304638799,-460.0,0.00020509,2]
[368696341,1751304638808,-460.0,0.00020509,2]
[368696342,1751304638818,-460.0,0.00020509,2]
[368696343,1751304638827,-460.0,0.00020565,2]
[368696344,1751304638837,-1630.56,0.000206,2]
[368696345,1751304638846,-559.53,0.00020673,2]
[368696346,1751304638855,-460.0,0.00020673,2]
[368696347,1751304638865,-408.22,0.00020673,2]
[368696348,1751304638874,-460.0,0.00020673,2]
[368696349,1751304638884,-281.63,0.00020673,2]
[368696350,1751304638893,-460.0,0.00020673,2]
[368696351,1751304638903,-492.7,0.00020673,2]
[368696352,1751304638913,-460.0,0.00020673,2]
[368696353,1751304638922,-460.0,0.00020673,2]
[368696354,1751304638931,-460.0,0.00020674,2]
[368696355,1751304638940,-460.0,0.00020674,2]
[368696356,1751304638949,-460.0,0.00020783,2]
[368696357,1751304638959,-460.0,0.00020783,2]
[368696358,1751304638968,-460.0,0.00020783,2]
[368696359,1751304638978,-460.0,0.00020783,2]
[368696360,1751304638988,-222.36570744,0.00020793,5]
[368696361,1751304638997,-1307.25,0.000208,2]
[368696362,1751304639007,-460.0,0.00020839,2]
[368696363,1751304639017,-586.3,0.00020947,2]
[368696364,1751304639027,-165.34,0.00020947,2]
[368696365,1751304639037,-260.46,0.00020948,2]
[368696366,1751304639047,-1596.7387527,0.00020976,2]
[368696367,1751304639057,-460.0,0.00021057,2]
[368696368,1751304639066,-460.0,0.00021057,2]
[368696369,1751304639076,-187.66,0.00021057,2]
[368696370,1751304639085,-460.0,0.00021057,2]
[368696371,1751304639095,-602.0,0.00021103,2]
[368696372,1751304639105,-460.0,0.00021113,2]
[368696373,1751304639114,-748.14650131,0.00021198,2]
[368696374,1751304639124,-478.46255277,0.00021331,2]
[368696375,1751304639134,-473.4,0.00021331,2]
[368696376,1751304639143,-460.0,0.00021331,2]
[368696377,1751304639154,-354.0,0.00021343,2]
[368696378,1751304639165,-460.0,0.00021387,2]
[368696379,1751304639176,-150.94682628,0.00021455,2]
[368696380,1751304639189,-160.0,0.00021497,3]
[368696381,1751304639199,-460.0,0.00021605,2]
[368696382,1751304639209,-460.0,0.00021661,2]
[368696383,1751304639218,-648.46,0.00021761,3]
[368696384,1751304639228,-324.22,0.00021761,3]
[368696385,1751304639238,-354.0,0.00021791,2]
[368696386,1751304639247,-420.0,0.00021795,2]
[368696387,1751304639257,-23221.87729931,0.00021852,2]
[368696388,1751304639266,-690.642,0.00021852,2]
[368696389,1751304639275,-207.4,0.00021852,2]
[368696390,1751304639285,-460.0,0.00021879,2]
[368696391,1751304639295,-716.195754,0.00021907,2]
[368696392,1751304639305,-460.0,0.00021935,2]
[368696393,1751304639315,-742.6949969,0.00021962,2]
[368696394,1751304639325,-500.0,0.00021973,2]
[368696395,1751304639334,-500.0,0.00021973,2]
[368696396,1751304639345,-500.74369251,0.00021973,2]
[368696397,1751304639354,-496.51947691,0.00021973,2]
[368696398,1751304639365,-500.0,0.00021973,2]
[368696399,1751304639375,-160.04803609,0.00021973,2]
[368696400,1751304639386,-500.0,0.00021973,2]
[368696401,1751304639399,-500.0,0.00021973,2]
[368696402,1751304639410,-500.0,0.00021973,2]
[368696403,1751304639420,-500.0,0.00021973,2]
[368696404,1751304639429,-500.0,0.00021973,2]
[368696405,1751304639439,-500.0,0.00021973,2]
[368696406,1751304639448,-500.0,0.00021973,2]
[368696407,1751304639458,-500.0,0.00021973,2]
[368696408,1751304639467,-500.0,0.00021973,2]
[368696409,1751304639478,-468.30036859,0.00021973,2]
[368696410,1751304639489,-600.0,0.00021973,2]
[368696411,1751304639498,-500.0,0.00021973,2]
[368696412,1751304639508,-500.0,0.00021973,2]
[368696413,1751304639518,-500.0,0.00021973,2]
[368696414,1751304639528,-500.0,0.00021973,2]
[368696415,1751304639537,-500.0,0.00021973,2]
[368696416,1751304639548,-500.0,0.00021973,2]
[368696417,1751304639558,-500.0,0.00021973,2]
[368696418,1751304639569,-500.0,0.00021973,2]
[368696419,1751304639579,-500.0,0.00021973,2]
[368696420,1751304639589,-500.0,0.00021973,2]
[368696421,1751304639598,-500.0,0.00021973,2]
[368696422,1751304639608,-500.0,0.00021973,2]
[368696423,1751304639618,-500.0,0.00021973,2]
[368696424,1751304639627,-500.0,0.00021973,2]
[368696425,1751304639637,-500.0,0.00021973,2]
[368696426,1751304639647,-500.0,0.00021973,2]
[368696427,1751304639658,-500.0,0.00021973,2]
[368696428,1751304639668,-500.73388162,0.00021973,2]
[368696429,1751304639679,-500.0,0.00021973,2]
[368696430,1751304639689,-521.29076982,0.00021973,2]
[368696431,1751304639699,-500.0,0.00021973,2]
[368696432,1751304639709,-500.0,0.00021973,2]
[368696433,1751304639720,-500.0,0.00021973,2]
[368696434,1751304639730,-500.0,0.00021973,2]
[368696435,1751304639740,-500.0,0.00021973,2]
[368696436,1751304639750,-500.0,0.00021973,2]
[368696437,1751304639760,-500.0,0.00021973,2]
[368696438,1751304639769,-564.16242984,0.00021973,2]
[368696439,1751304639780,-500.0,0.00021999,2]
[368696440,1751304639790,-500.0,0.00021999,2]
[368696441,1751304639800,-322.39125931,0.00021999,2]
[368696442,1751304639941,-500.0,0.00021999,2]
[368696443,1751304639958,-500.0,0.00021999,2]
[368696444,1751304639971,-500.0,0.00021999,2]
[368696445,1751304639980,-500.0,0.00021999,2]
[368696446,1751304639991,-339.14647985,0.00021999,2]
[368696447,1751304640001,-500.0,0.00021999,2]
[368696448,1751304640010,-500.0,0.00021999,2]
[368696449,1751304640019,-500.0,0.00021999,2]
[368696450,1751304640029,-500.0,0.00021999,2]
[368696451,1751304640039,-500.0,0.00021999,2]
[368696452,1751304640050,-500.0,0.00021999,2]
[368696453,1751304640060,-500.0,0.00021999,2]
[368696454,1751304640070,-314.11931807,0.00021999,2]
[368696455,1751304640079,-500.0,0.00021999,2]
[368696456,1751304640090,-15191.48778614,0.00022,2]
[368696457,1751304640099,-134174.79,0.00022,7]
[368696458,1751304640109,-15354.52,0.00022,7]
[368696459,1751304640118,-213.84631524,0.00022,7]
[368696460,1751304640128,-37863.91073517,0.00022,2]
[368696461,1751304640138,-231524.53854696,0.00022,5]
[368696462,1751304640151,-42278.04268191,0.00022,5]
[368696464,1751304640326,-17.77082194,0.00022,5]
[368696465,1751304640366,-176.72234979,0.00022,5]
[368696467,1751304640585,-280.9317462,0.00022,5]
[368696468,1751304640597,-348.61754109,0.00022,5]
[368696469,1751304640608,-1031.38245891,0.00022,5]
[368696470,1751304640620,-1088.96349888,0.00022,5]
[368696471,1751304640631,-150823.64206033,0.00022,5]
[368696473,1751304640643,-3557.6952722,0.00022,5]
[368696474,1751304640655,-1267.63608658,0.00022,5]
[368696486,1751304645705,-189.38503339,0.00020337,2]
[368696487,1751304645715,-458.45618992,0.000209,4]
[368696488,1751304645724,-195.84575127,0.00021038,4]
[368696489,1751304645736,-262.61043845,0.00021038,4]
[368696490,1751304645746,-458.45618972,0.00021176,4]
[368696491,1751304645755,-351.98893783,0.00021314,5]
[368696492,1751304645768,-106.46725189,0.00021314,5]
[368696493,1751304645778,-458.45618972,0.00021452,5]
[368696494,1751304645787,-458.45618972,0.0002159,5]
[368696495,1751304645796,-1543.96135352,0.00022,5]
[368696500,1751304646717,-458.45618972,0.00021728,5]
[368696501,1751304646728,-458.45618972,0.00021866,6]
[368696508,1751304646851,-1231.03533349,0.00022,5]
[368696509,1751304646889,-338.94080849,0.00022,5]
[368696512,1751304785977,159.80495,0.00013699,2]
[368696523,1751305632173,-150.71285488,0.00019189,2]
[368696524,1751305635176,-30.22718512,0.00019189,2]
[368696525,1751305635197,-300.0,0.00019204,2]
[368696526,1751305635221,-17267.9254902,0.00019205,2]
[368696527,1751305635245,-76.44635588,0.00019221,2]
[368696529,1751305756086,-193.01079931,0.000189,2]
[368696530,1751305756107,-1484.7382111,0.00018963,2]
[368696531,1751305756129,-204.32057977,0.00019047,2]
[368696532,1751305756150,-71.42206834,0.00019147,2]
[368696533,1751305761109,-228.57793166,0.00019147,2]
[368696534,1751305761131,-14835.423253,0.00019148,2]
[368696535,1751305761153,-96.23714812,0.00019221,2]
[368696536,1751305761174,-279.93019009,0.00019282,2]
[368696539,1751305831944,-195.72289091,0.00019282,2]
[368696540,1751305831954,-189.43983485,0.00019398,2]
[368696541,1751305831976,-460.0,0.00019997,2]
[368696542,1751305831987,-1571.03792857,0.00019998,2]
[368696543,1751305832000,-641.04713627,0.00019998,2]
[368696569,1751305835027,163.401207,0.00013699,2]
[368696575,1751305837844,-180.94004,0.00019256,2]
[368696576,1751305837855,-537.39225659,0.00019998,2]
[368696577,1751305837864,-151.96852159,0.00020187,2]
[368696578,1751305837875,-11.43268541,0.00020187,2]
[368696579,1751305837886,-150.94682634,0.00020199,2]
[368696580,1751305837895,-128.38048823,0.00020271,2]
[368696581,1751305838002,-331.61951177,0.00020271,2]
[368696582,1751305838011,-394.47562695,0.00020273,2]
[368696583,1751305838022,-311.50250162,0.00020273,2]